bitfinex-derivatives/quotes_SOLF0:USTF0_20240923
["timestamp","ask_amount","ask_price","bid_price","bid_amount"]
[1727129250758,13.11139205,144.03,144.0,3.4719]
[1727129251154,9.6,144.02,144.0,3.4719]
[1727129252248,9.6,144.01,143.86,6.9506]
[1727129252452,9.6,143.98,143.93,17.30971239]
[1727129252856,9.6,143.98,143.93,9.6]
[1727129253059,9.6,143.98,143.95,3.473]
[1727129253060,13.11434521,143.98,143.95,3.473]
[1727129253259,9.6,143.96,143.91,1.3646]
[1727129253445,1.3462,144.05,143.94,9.6]
[1727129253648,9.6,143.99,143.96,3.4729]
[1727129253856,3.49829474,143.98,143.96,3.4729]
[1727129254257,3.49829474,143.98,143.97,3.4727]
[1727129254455,9.6,143.99,143.95,9.6]
[1727129254757,13.10003225,143.98,143.93,9.6]
[1727129254964,13.10003225,143.98,143.95,3.473]
[1727129257068,9.6,143.99,143.94,9.6]
[1727129257764,9.6,143.99,143.97,3.4727]
[1727129258766,9.6,143.99,143.96,3.4729]
[1727129258978,9.6,143.98,143.96,3.4729]
[1727129259278,9.6,143.97,143.93,9.6]
[1727129259481,9.6,143.97,143.94,3.4734]
[1727129259677,9.6,143.96,143.94,3.4734]
[1727129259969,9.6,143.95,143.9,2.7707]
[1727129260176,9.6,143.95,143.9,1.3267]
[1727129260177,9.6,143.94,143.9,1.3267]
[1727129260375,9.6,143.94,143.89,81.67862439]
[1727129260376,9.6,143.92,143.89,81.67862439]
[1727129260571,9.6,143.92,143.91,3.4742]
[1727129261280,9.6,143.93,143.89,91.27862439]
[1727129262271,3.39056092,143.94,143.89,81.67862439]
[1727129262471,15.03,143.96,143.89,81.67862439]
[1727129262875,15.03,143.96,143.92,3.4739]
[1727129263077,18.46530556,143.96,143.92,3.4739]
[1727129271474,15.03,143.94,143.9,3.4743]
[1727129272280,15.03,143.92,143.9,3.4743]
[1727129272983,3.4667279,143.91,143.9,3.4743]
[1727129274383,15.03,143.94,143.9,3.4743]
[1727129274583,18.44666685,143.94,143.9,3.4743]
[1727129274783,18.44666685,143.94,143.86,16.3567]
[1727129275093,3.41666685,143.94,143.86,16.3567]
[1727129275281,15.03,143.96,143.93,3.4737]
[1727129275788,18.45257683,143.96,143.93,3.4737]
[1727129277185,18.45257683,143.96,143.92,3.4738]
[1727129282394,9.62,143.93,143.92,3.4738]
[1727129282584,9.62,143.93,143.88,9.62]
[1727129282891,9.62,143.91,143.87,1.4562]
[1727129283389,9.62,143.91,143.89,3.4745]
[1727129283591,9.62,143.91,143.87,1.4562]
[1727129283791,3.46763623,143.92,143.86,10.9467]
[1727129283792,9.62,143.9,143.88,3.4747]
[1727129284089,9.62,143.89,143.84,81.71203013]
[1727129284295,9.62,143.87,143.84,81.71203013]
[1727129284495,9.62,143.87,143.86,3.4754]
[1727129289998,87.5569,143.99,143.85,9.62]
[1727129290196,9.62,143.91,143.85,9.62]
[1727129290500,13.17492958,143.92,143.87,9.62]
[1727129290701,9.62,143.92,143.87,9.62]
[1727129290998,9.62,143.92,143.9,3.4743]
[1727129291194,13.02751735,143.92,143.9,3.4743]
[1727129291396,13.02751735,143.92,143.91,3.4742]
[1727129291692,87.5569,143.99,143.89,9.62]
[1727129291891,9.62,143.95,143.89,9.62]
[1727129292086,3.43217687,143.94,143.89,9.62]
[1727129292692,3.43217687,143.94,143.93,3.4737]
[1727129294696,4.1369,143.99,143.91,9.62]
[1727129294697,9.62,143.96,143.91,9.62]
[1727129295596,9.62,143.96,143.94,3.4733]
[1727129296105,9.62,143.95,143.93,3.4736]
[1727129297405,9.62,143.95,143.94,3.4734]
[1727129297593,13.08461345,143.96,143.94,3.4734]
[1727129298603,13.08461345,143.96,143.93,3.4736]
[1727129299398,9.62,143.95,143.93,3.4736]
[1727129305910,13.13223581,143.96,143.93,3.4736]
[1727129306212,9.62,143.96,143.93,3.4736]
[1727129306814,13.16525166,143.96,143.91,9.62]
[1727129307110,13.16525166,143.96,143.94,3.4733]
[1727129308114,9.62,143.95,143.84,81.71203013]
[1727129308409,3.54525166,143.96,143.84,81.71203013]
[1727129308410,9.62,143.91,143.87,9.62]
[1727129308610,9.62,143.91,143.9,3.4744]
[1727129314917,3.46530867,143.93,143.91,3.474]
[1727129314918,13.08530867,143.93,143.91,3.474]
[1727129315107,13.08530867,143.93,143.89,9.62]
[1727129315511,13.08530867,143.93,143.9,9.62]
[1727129315512,3.46530867,143.93,143.9,9.62]
[1727129315907,3.46530867,143.93,143.92,3.4739]
[1727129316821,9.62,143.94,143.92,3.4739]
[1727129317222,13.07094903,143.94,143.92,3.4739]
[1727129322425,9.62,143.93,143.92,3.4739]
[1727129323126,13.15507022,143.93,143.92,3.4739]
[1727129329922,13.15507022,143.93,143.85,1.4359]
[1727129330230,9.62,143.92,143.88,9.62]
[1727129330826,9.62,143.92,143.9,3.4743]
[1727129331125,13.05936865,143.92,143.85,1.4359]
[1727129331330,13.05936865,143.92,143.87,9.62]
[1727129331835,13.05936865,143.92,143.86,4.86473409]
[1727129331836,9.62,143.9,143.88,3.4747]
[1727129332231,9.62,143.89,143.87,3.4751]
[1727129334833,3.43936865,143.92,143.88,3.4749]
[1727129335036,9.62,143.9,143.88,3.4749]
[1727129335538,13.71506015,143.97,143.9,3.4742]
[1727129335834,9.62,143.91,143.87,9.62]
[1727129336037,13.13415258,143.91,143.87,9.62]
[1727129336627,13.13415258,143.91,143.88,3.4747]
[1727129338038,9.62,143.9,143.88,3.4747]
[1727129338232,9.62,143.89,143.87,3.475]
[1727129339339,1.4522,143.93,143.87,3.475]
[1727129339640,9.62,143.89,143.87,3.475]
[1727129340430,1.4522,143.93,143.86,9.62]
[1727129340639,3.45121357,143.94,143.9,9.62]
[1727129340837,9.62,143.96,143.91,9.62]
[1727129341036,13.06715177,143.96,143.92,3.4738]
[1727129341342,9.62,143.93,143.89,9.62]
[1727129341540,9.62,143.93,143.91,3.4741]
[1727129342543,9.62,143.93,143.9,3.4744]
[1727129343237,9.62,143.93,143.91,3.4741]
[1727129344634,3.39639189,143.95,143.91,3.4741]
[1727129344843,9.62,143.92,143.91,3.4741]
[1727129347350,9.62,143.93,143.91,3.4741]
[1727129348045,13.11474887,143.93,143.91,3.4741]
[1727129350459,3.49474887,143.93,143.92,3.4739]
[1727129350661,9.62,143.94,143.92,3.4739]
[1727129350863,3.55731648,143.93,143.92,3.4739]
[1727129351758,2.8013,143.99,143.94,3.4733]
[1727129351960,9.62,143.95,143.91,9.62]
[1727129352159,9.62,143.92,143.85,1.4359]
[1727129352362,1.3217,143.98,143.85,1.4359]
[1727129352858,1.3217,143.98,143.81,9.62]
[1727129352859,9.62,143.86,143.81,9.62]
[1727129353059,9.62,143.86,143.81,11.0462]
[1727129353261,3.43496203,143.88,143.81,1.4262]
[1727129353262,9.62,143.84,143.81,1.4262]
[1727129353562,13.70899349,143.97,143.81,1.4262]
[1727129353766,9.62,143.84,143.81,1.4262]
[1727129354165,9.62,143.84,143.81,9.21142075]
[1727129354363,1.3217,143.98,143.83,9.62]
[1727129354666,9.62,143.88,143.83,9.62]
[1727129355858,9.62,143.88,143.85,3.4755]
[1727129356363,18.47332742,143.9,143.85,3.4755]
[1727129356664,15.02,143.88,143.81,9.21142075]
[1727129357567,3.44069937,143.87,143.83,3.4759]
[1727129357767,3.44069937,143.87,143.81,9.21142075]
[1727129357962,15.02,143.88,143.81,9.21142075]
[1727129358163,15.02,143.84,143.81,9.21142075]
[1727129358365,15.02,143.85,143.81,9.21142075]
[1727129358566,15.02,143.85,143.82,3.4762]
[1727129358765,3.5036496,143.88,143.81,9.21142075]
[1727129358766,15.02,143.87,143.81,9.21142075]
[1727129359368,15.02,143.87,143.83,3.476]
[1727129359763,18.56642793,143.87,143.83,3.476]
[1727129360161,18.56642793,143.87,143.82,3.4763]
[1727129360162,15.02,143.85,143.82,3.4763]
[1727129361568,15.02,143.85,143.81,7.78522075]
[1727129362868,15.02,143.85,143.81,11.26162075]
[1727129363667,15.02,143.85,143.82,3.4763]
[1727129363873,15.02,143.85,143.81,7.78522075]
[1727129364162,15.02,143.85,143.77,1.4272]
[1727129364463,18.56642793,143.87,143.78,15.02]
[1727129365275,18.56642793,143.87,143.83,3.4761]
[1727129365569,18.56642793,143.87,143.78,15.02]
[1727129365570,15.02,143.85,143.77,1.4272]
[1727129365764,15.02,143.84,143.77,1.4272]
[1727129366470,15.02,143.84,143.81,3.4766]
[1727129367169,15.02,143.84,143.77,1.4272]
[1727129368571,15.02,143.84,143.8,3.4767]
[1727129368969,15.02,143.84,143.77,1.4272]
[1727129369470,15.02,143.84,143.81,3.4764]
[1727129371170,15.02,143.84,143.8,3.4767]
[1727129372874,2.7677,143.86,143.77,16.4472]
[1727129373076,3.54642793,143.87,143.8,15.02]
[1727129373381,15.02,143.88,143.8,15.02]
[1727129373879,3.40860768,143.87,143.8,15.02]
[1727129374176,3.40860768,143.87,143.83,3.4759]
[1727129376374,9.61,143.85,143.83,3.4759]
[1727129376874,2.7328,143.92,143.82,3.4762]
[1727129376875,9.61,143.84,143.82,3.4762]
[1727129377669,9.61,143.84,143.78,10.94]
[1727129377876,9.61,143.83,143.81,3.4765]
[1727129378681,9.61,143.82,143.81,3.4765]
[1727129382876,2.7328,143.92,143.81,9.61]
[1727129383072,9.61,143.87,143.82,9.61]
[1727129383981,9.61,143.86,143.81,109.61]
[1727129385887,9.61,143.86,143.85,3.4756]
[1727129386182,9.61,143.88,143.82,9.61]
[1727129386389,2.7328,143.92,143.85,9.61]
[1727129386685,9.61,143.9,143.85,9.61]
[1727129386886,9.61,143.9,143.88,3.4747]
[1727129388676,9.61,143.9,143.85,9.61]
[1727129388880,9.61,143.9,143.89,3.4747]
[1727129389186,9.61,143.91,143.86,9.61]
[1727129390882,9.61,143.91,143.89,3.4745]
[1727129393189,9.61,143.91,143.9,3.4744]
[1727129393380,9.61,143.97,143.9,9.61]
[1727129393681,9.61,143.97,143.93,9.61]
[1727129393875,9.61,143.97,143.95,3.473]
[1727129395482,2.7284,143.98,143.95,3.473]
[1727129395684,9.61,143.97,143.95,3.473]
[1727129395981,9.61,143.96,143.94,3.4734]
[1727129396379,17.7484,143.98,143.94,3.4734]
[1727129402386,17.7484,143.98,143.92,3.4738]
[1727129402587,17.7484,143.98,143.79,6.9539]
[1727129402588,15.02,143.94,143.79,6.9539]
[1727129402888,15.02,143.94,143.84,15.02]
[1727129403285,15.02,143.94,143.9,3.4742]
[1727129403682,15.02,143.92,143.88,3.4748]
[1727129404287,15.02,143.92,143.87,3.4749]
[1727129404584,8.432,143.92,143.83,1.4194]
[1727129404783,224.0,144.17,143.98,3.4723]
[1727129404784,15.02,144.02,143.98,3.4723]
[1727129404984,1.4214,144.03,143.95,15.02]
[1727129405380,15.02,144.02,143.94,81.65688327]
[1727129405581,15.02,144.01,143.94,81.65688327]
[1727129406875,16.4414,144.03,143.94,81.65688327]
[1727129407488,16.4414,144.03,144.0,3.4719]
[1727129409682,16.4414,144.03,143.94,81.65688327]
[1727129411787,16.4414,144.03,143.99,3.4722]
[1727129416395,9.61,144.01,143.99,3.4722]
[1727129422693,9.61,144.01,143.98,3.4724]
[1727129423501,9.61,144.01,143.99,3.4722]
[1727129425005,9.61,144.02,143.99,3.4722]
[1727129425908,1.4214,144.03,144.01,9.61]
[1727129426204,1.4214,144.03,143.94,81.65688327]
[1727129426205,2.7312,144.05,144.02,9.61]
[1727129427708,2.7312,144.05,143.95,1.5613]
[1727129427709,2.7312,144.05,144.01,9.61]
[1727129428197,2.7312,144.05,144.03,3.4712]
[1727129428399,1.3276,144.05,144.02,9.61]
[1727129429111,13.0637894,144.06,144.03,3.4711]
[1727129429298,9.61,144.06,144.03,3.4711]
[1727129429898,3.51812807,144.05,144.03,3.4711]
[1727129433006,3.51812807,144.05,144.04,3.471]
[1727129433208,1.3559,144.07,144.02,9.61]
[1727129433209,10.9659,144.07,144.02,9.61]
[1727129433405,1.3559,144.07,144.03,9.61]
[1727129433609,1.3559,144.07,144.06,3.4706]
[1727129433610,4.77214973,144.07,144.06,3.4706]
[1727129433815,4.77214973,144.07,144.03,9.61]
[1727129434708,4.77214973,144.07,144.05,3.4707]
[1727129434909,14.38214973,144.07,144.05,3.4707]
[1727129438409,1.3414,144.11,144.06,3.4706]
[1727129438606,9.61,144.1,144.05,9.61]
[1727129439122,13.0302901,144.1,144.05,9.61]
[1727129439613,13.0302901,144.1,144.07,3.4702]
[1727129439614,9.61,144.09,144.07,3.4702]
[1727129439813,9.61,144.08,144.04,9.61]
[1727129440309,9.61,144.08,144.06,3.4703]
[1727129440713,9.61,144.09,144.04,9.61]
[1727129441014,9.61,144.09,144.07,3.4701]
[1727129441416,6.33703063,144.11,144.08,3.4701]
[1727129441616,6.33703063,144.11,144.06,9.61]
[1727129441819,14.60563063,144.11,144.06,9.61]
[1727129442010,11.0551,144.11,144.09,3.4696]
[1727129442212,13.03398207,144.12,144.07,9.61]
[1727129442412,9.61,144.12,144.07,9.61]
[1727129442613,13.07148614,144.12,144.07,9.61]
[1727129443319,13.07148614,144.12,144.09,3.4697]
[1727129443723,13.07148614,144.12,144.11,3.4693]
[1727129443921,13.07148614,144.12,144.07,9.61]
[1727129444322,4.1788,144.18,144.11,9.61]
[1727129444516,9.61,144.17,144.11,9.61]
[1727129444911,9.61,144.17,144.14,3.4686]
[1727129445426,9.61,144.17,144.12,9.61]
[1727129447017,9.61,144.17,144.14,3.4686]
[1727129448519,9.61,144.19,144.15,9.61]
[1727129448730,9.61,144.2,144.15,9.61]
[1727129448912,9.61,144.2,144.16,3.4681]
[1727129450418,4.1931,144.26,144.15,3.4683]
[1727129450730,9.61,144.18,144.15,3.4683]
[1727129453930,9.61,144.19,144.15,3.4683]
[1727129455220,9.61,144.19,144.16,3.4681]
[1727129456531,1.4175,144.2,144.17,3.4679]
[1727129456532,11.0275,144.2,144.17,3.4679]
[1727129456730,11.0275,144.2,144.16,9.61]
[1727129457523,1.4175,144.2,144.16,9.61]
[1727129457728,11.0275,144.2,144.16,13.078]
[1727129458928,11.0275,144.2,144.16,3.468]
[1727129460534,9.61,144.17,144.1,1.5015]
[1727129460839,9.61,144.16,144.12,9.61]
[1727129461031,9.61,144.17,144.14,3.4685]
[1727129463034,9.61,144.19,144.15,13.0784]
[1727129463537,13.7835,144.2,144.15,13.0784]
[1727129464842,13.7835,144.2,144.15,9.61]
[1727129465037,2.8039,144.2,144.17,9.61]
[1727129465334,1.4175,144.2,144.17,13.0777]
[1727129466439,11.0275,144.2,144.17,13.0777]
[1727129467340,11.0275,144.2,144.16,13.078]
[1727129468342,9.61,144.19,144.15,3.4683]
[1727129469339,9.61,144.19,144.16,3.4681]
[1727129476839,9.61,144.19,144.15,3.4683]
[1727129478748,9.61,144.19,144.15,13.0783]
[1727129482049,11.0275,144.2,144.15,13.0783]
[1727129482347,11.0275,144.2,144.16,3.4681]
[1727129487845,1.4175,144.2,144.16,3.4681]
[1727129488045,1.4175,144.2,144.17,3.4679]
[1727129493154,1.4175,144.2,144.17,13.0779]
[1727129495157,1.4175,144.2,144.1,1.3939]
[1727129495455,1.4175,144.2,144.16,9.61]
[1727129495956,1.4175,144.2,144.17,3.4678]
[1727129497456,1.4175,144.2,144.17,13.0778]
[1727129498753,1.4175,144.2,144.18,3.4676]
[1727129498952,2.6747,144.3,144.19,9.61]
[1727129499155,1.4332,144.29,144.22,9.61]
[1727129499356,1.4332,144.29,144.12,0.106]
[1727129499357,1.4332,144.29,144.23,9.61]
[1727129499557,9.61,144.28,144.23,9.61]
[1727129499760,13.12030199,144.28,144.23,9.61]
[1727129500851,9.61,144.26,144.22,13.0766]
[1727129502858,1.4332,144.29,144.25,3.4659]
[1727129503060,1.4332,144.29,144.19,0.1059]
[1727129503268,1.4332,144.29,144.27,9.61]
[1727129503965,1.4332,144.29,144.27,13.0754]
[1727129506157,9.61,144.31,144.27,13.0754]
[1727129506665,13.08308863,144.31,144.27,13.0754]
[1727129508463,9.61,144.3,144.27,3.4654]
[1727129510964,9.61,144.29,144.24,3.4661]
[1727129511163,3.47308863,144.31,144.19,0.1059]
[1727129511164,9.61,144.28,144.19,0.1059]
[1727129511362,9.61,144.28,144.23,9.61]
[1727129511870,9.61,144.29,144.25,9.61]
[1727129512667,1.3512,144.3,144.25,9.61]
[1727129512867,1.3512,144.3,144.26,3.4657]
[1727129515363,9.61,144.29,144.25,3.4659]
[1727129515666,9.61,144.27,144.18,1.3835]
[1727129515873,9.61,144.27,144.22,9.61]
[1727129516672,9.61,144.27,144.23,3.4665]
[1727129517057,9.61,144.27,144.23,13.0765]
[1727129519473,2.8479,144.29,144.24,9.61]
[1727129519672,2.8479,144.29,144.25,9.61]
[1727129519673,12.4579,144.29,144.25,9.61]
[1727129520073,12.4579,144.29,144.25,13.0758]
[1727129521170,12.4579,144.29,144.18,1.3835]
[1727129521171,1.3512,144.3,144.26,9.61]
[1727129521372,1.3512,144.3,144.18,1.3835]
[1727129521373,1.3512,144.3,144.28,9.61]
[1727129522075,2.7912,144.38,144.29,9.61]
[1727129522273,1.4589,144.37,144.29,9.61]
[1727129522475,9.61,144.35,144.29,9.61]
[1727129523071,4.89800389,144.37,144.28,9.61]
[1727129523375,9.61,144.32,144.28,9.61]
[1727129524765,9.61,144.32,144.28,13.0751]
[1727129525573,4.89800389,144.37,144.28,13.0751]
[1727129525789,9.61,144.33,144.28,13.0751]
[1727129529080,4.89800389,144.37,144.28,13.0751]
[1727129529274,9.61,144.33,144.28,13.0751]
[1727129529888,9.61,144.32,144.18,84.6035]
[1727129530089,9.61,144.32,144.27,9.61]
[1727129530482,9.61,144.32,144.27,13.0755]
[1727129532886,9.61,144.32,144.28,3.4653]
[1727129534590,9.61,144.32,144.27,13.0754]
[1727129536385,9.61,144.32,144.27,3.4654]
[1727129536693,9.61,144.3,144.25,9.61]
[1727129536888,3.45110957,144.29,144.25,9.61]
[1727129537385,9.61,144.3,144.25,13.0759]
[1727129538484,9.61,144.3,144.24,3.4661]
[1727129538688,13.0578832,144.29,144.24,3.4661]
[1727129538891,9.61,144.29,144.24,13.0761]
[1727129539596,13.16328913,144.29,144.24,13.0761]
[1727129540589,9.61,144.28,144.23,3.4664]
[1727129540889,9.61,144.26,144.22,9.61]
[1727129541298,9.61,144.26,144.23,3.4664]
[1727129541592,9.61,144.26,144.23,13.0764]
[1727129541794,3.53045227,144.27,144.23,13.0764]
[1727129541988,3.53045227,144.27,144.24,9.61]
[1727129542691,3.53045227,144.27,144.24,13.0761]
[1727129542886,11.0605,144.28,144.24,13.0761]
[1727129543497,14.45846059,144.28,144.24,13.0761]
[1727129544300,14.45846059,144.28,144.24,9.61]
[1727129545600,14.45846059,144.28,144.23,3.4664]
[1727129545804,14.45846059,144.28,144.23,13.0764]
[1727129546106,14.45846059,144.28,144.23,3.4664]
[1727129546402,14.45846059,144.28,144.23,13.0764]
[1727129550605,14.45846059,144.28,144.24,3.4662]
[1727129552603,9.61,144.27,144.24,3.4662]
[1727129553407,9.61,144.27,144.23,3.4664]
[1727129553707,9.61,144.25,144.21,9.61]
[1727129553899,9.61,144.25,144.21,13.0768]
[1727129554305,9.61,144.25,144.18,82.90632184]
[1727129554500,1.449,144.27,144.2,13.077]
[1727129554501,9.61,144.23,144.2,13.077]
[1727129556303,2.8386,144.27,144.21,3.4669]
[1727129556304,9.61,144.24,144.21,3.4669]
[1727129557306,9.61,144.24,144.2,13.077]
[1727129560108,9.61,144.24,144.21,3.4669]
[1727129562006,2.8386,144.27,144.21,3.4669]
[1727129562212,9.61,144.24,144.21,3.4669]
[1727129563311,2.8386,144.27,144.22,3.4666]
[1727129563506,9.61,144.25,144.22,3.4666]
[1727129567512,2.8386,144.27,144.22,9.61]
[1727129567719,14.45846059,144.28,144.22,9.61]
[1727129568112,14.45846059,144.28,144.25,3.466]
[1727129568414,4.84846059,144.28,144.25,3.466]
[1727129568615,9.61,144.27,144.25,3.466]
[1727129568918,9.61,144.27,144.24,3.4661]
[1727129570017,9.61,144.27,144.25,3.4659]
[1727129572315,9.61,144.26,144.24,3.466]
[1727129574716,9.61,144.25,144.18,82.90632184]
[1727129575024,9.61,144.23,144.19,9.61]
[1727129575817,9.61,144.23,144.22,3.4665]
[1727129579120,4.84846059,144.28,144.22,3.4665]
[1727129579319,9.61,144.24,144.22,3.4665]
[1727129583020,9.61,144.24,144.23,3.4665]
[1727129591825,9.61,144.27,144.24,3.4662]
[1727129592426,9.61,144.27,144.25,3.466]
[1727129593132,4.84846059,144.28,144.25,3.466]
[1727129593433,14.45846059,144.28,144.25,3.466]
[1727129593822,2.7788,144.35,144.26,9.61]
[1727129594027,9.61,144.31,144.26,9.61]
[1727129594429,9.61,144.31,144.27,3.4654]
[1727129594634,1.4504,144.34,144.27,3.4654]
[1727129594635,9.61,144.3,144.27,3.4654]
[1727129594836,3.49496784,144.29,144.27,3.4654]
[1727129595934,9.61,144.3,144.26,9.61]
[1727129596133,1.4504,144.34,144.27,9.61]
[1727129596335,9.61,144.33,144.27,9.61]
[1727129597146,1.4504,144.34,144.27,9.61]
[1727129597341,9.61,144.32,144.27,9.61]
[1727129598234,9.61,144.32,144.29,3.465]
[1727129600443,9.61,144.31,144.27,9.61]
[1727129600641,9.61,144.28,144.22,9.61]
[1727129600848,1.4504,144.34,144.22,9.61]
[1727129600849,9.61,144.27,144.22,9.61]
[1727129601241,9.61,144.27,144.25,3.4658]
[1727129601838,9.61,144.27,144.26,3.4657]
[1727129602245,9.61,144.27,144.22,9.61]
[1727129602447,9.61,144.26,144.24,3.4662]
[1727129602649,9.61,144.26,144.22,9.61]
[1727129603154,9.61,144.26,144.25,3.466]
[1727129606142,9.61,144.26,144.24,3.4662]
[1727129610152,13.66413302,144.33,144.19,11.0274]
[1727129610153,9.61,144.25,144.19,11.0274]
[1727129610355,9.61,144.24,144.19,11.0274]
[1727129611052,13.11603027,144.25,144.2,9.61]
[1727129611253,9.61,144.25,144.2,9.61]
[1727129611448,9.61,144.25,144.23,3.4663]
[1727129611856,13.12875747,144.25,144.23,3.4663]
[1727129612357,9.61,144.25,144.23,3.4663]
[1727129616258,9.61,144.25,144.2,9.61]
[1727129616558,9.61,144.23,144.19,11.0274]
[1727129616953,9.61,144.21,144.18,81.52282184]
[1727129617359,9.61,144.19,144.18,81.52282184]
[1727129617559,9.61,144.19,144.18,84.99032184]
[1727129619550,9.61,144.19,144.18,81.52282184]
[1727129620857,9.61,144.19,144.18,84.99052184]
[1727129626769,1.3937,144.21,144.18,81.52282184]
[1727129627064,9.61,144.2,144.18,81.52282184]
[1727129627766,9.61,144.2,144.19,3.4673]
[1727129634867,1.3937,144.21,144.19,3.4673]
[1727129635071,9.61,144.2,144.19,3.4673]
[1727129636276,11.0037,144.21,144.2,3.4672]
[1727129639572,11.0037,144.21,144.17,3.4678]
[1727129639771,9.61,144.19,144.17,3.4678]
[1727129640368,9.61,144.19,144.18,3.4677]
[1727129642183,9.61,144.2,144.18,3.4677]
[1727129643679,9.61,144.2,144.14,81.54684771]
[1727129643680,1.3937,144.21,144.16,9.61]
[1727129643879,11.0037,144.21,144.16,9.61]
[1727129645875,11.0037,144.21,144.19,3.4672]
[1727129646083,1.3937,144.21,144.16,9.61]
[1727129646382,11.0037,144.21,144.2,3.4672]
[1727129649081,11.0037,144.21,144.19,3.4673]
[1727129651879,9.61,144.2,144.19,3.4673]
[1727129652082,9.61,144.2,144.18,3.4675]
[1727129652286,9.61,144.19,144.18,3.4675]
[1727129654891,9.61,144.19,144.17,3.4678]
[1727129655490,9.61,144.19,144.18,3.4677]
[1727129660691,9.61,144.2,144.18,3.4677]
[1727129661691,1.3937,144.21,144.19,3.4674]
[1727129661885,9.61,144.2,144.19,3.4674]
[1727129665396,1.3937,144.21,144.19,3.4674]
[1727129665600,9.61,144.2,144.19,3.4674]
[1727129669195,3.50974543,144.22,144.17,9.61]
[1727129669400,12.3453,144.26,144.21,9.61]
[1727129669699,10.9367,144.26,144.21,9.61]
[1727129670000,9.61,144.26,144.25,3.466]
[1727129686405,9.61,144.27,144.22,9.61]
[1727129686703,2.656,144.31,144.24,9.61]
[1727129686896,9.61,144.29,144.24,9.61]
[1727129687102,13.00669157,144.29,144.24,9.61]
[1727129687806,13.00669157,144.29,144.27,3.4653]
[1727129692302,9.61,144.28,144.27,3.4653]
[1727129693108,13.01547159,144.28,144.27,3.4653]
[1727129695317,13.01547159,144.28,144.26,3.4657]
[1727129699910,9.61,144.28,144.26,3.4657]
[1727129700321,9.61,144.28,144.27,3.4655]
[1727129700512,9.61,144.29,144.25,9.61]
[1727129700719,9.61,144.3,144.25,9.61]
[1727129701817,9.61,144.3,144.21,1.3467]
[1727129701818,1.3291,144.31,144.26,9.61]
[1727129702018,10.958,144.32,144.26,9.61]
[1727129702525,10.958,144.32,144.3,3.4646]
[1727129703221,9.61,144.28,144.22,9.61]
[1727129703433,9.61,144.28,144.21,1.3467]
[1727129703728,9.61,144.28,144.22,9.61]
[1727129704119,9.61,144.28,144.26,3.4656]
[1727129711941,13.0074759,144.29,144.24,9.61]
[1727129712233,9.61,144.29,144.24,9.61]
[1727129712638,13.0901291,144.29,144.24,9.61]
[1727129712833,13.0901291,144.29,144.27,3.4654]
[1727129720128,3.4801291,144.29,144.28,3.4653]
[1727129720334,12.3581,144.31,144.26,9.61]